bitfinex/quotes_SOLUSD_20241116
["timestamp","ask_amount","ask_price","bid_price","bid_amount"]
[1731783791216,4.6309,215.94,215.87,12.74664248]
[1731783792024,23.776884,215.93,215.88,12.74664248]
[1731783792227,23.776884,215.93,215.87,12.74664248]
[1731783793033,23.776884,215.93,215.82,11.5834]
[1731783793241,28.408384,215.91,215.85,12.74664248]
[1731783793624,28.408384,215.91,215.82,11.5834]
[1731783793944,28.408384,215.91,215.86,12.74664248]
[1731783794619,160.9,215.92,215.9,12.74664248]
[1731783794826,4.6308,215.95,215.91,12.74664248]
[1731783795431,165.5304,215.97,215.94,12.74664248]
[1731783795630,15.922,215.98,215.96,12.74664248]
[1731783795843,165.5295,216.01,215.97,12.74664248]
[1731783796840,165.5295,216.01,215.96,12.74664248]
[1731783797642,23.776884,216.0,215.96,12.74664248]
[1731783798850,23.776884,216.0,215.94,12.74664248]
[1731783799021,4.6298,215.99,215.94,12.74664248]
[1731783799836,4.6298,215.99,215.96,12.74664248]
[1731783801339,4.6282,216.07,215.98,12.74664248]
[1731783801545,160.9,216.11,216.03,12.74664248]
[1731783801851,100.35261328,216.2,215.99,6.4302]
[1731783801852,160.9,216.14,215.99,6.4302]
[1731783802218,4.6264,216.15,216.09,12.74664248]
[1731783802519,160.9,216.14,216.09,12.74664248]
[1731783803344,4.6268,216.13,216.09,12.74664248]
[1731783803638,4.6268,216.13,216.03,11.5722]
[1731783803639,160.9,216.14,215.99,6.4302]
[1731783803849,4.6264,216.15,216.11,12.74664248]
[1731783804143,165.5264,216.15,216.11,12.74664248]
[1731783805437,4.6256,216.19,216.13,12.74664248]
[1731783805647,4.6256,216.19,216.15,12.74664248]
[1731783805951,4.6251,216.21,216.17,12.74664248]
[1731783806336,4.6251,216.21,216.15,12.74664248]
[1731783806835,165.5242,216.25,216.17,12.74664248]
[1731783807031,165.5242,216.25,216.19,12.74664248]
[1731783807741,165.5242,216.25,216.21,12.74664248]
[1731783808544,4.6242,216.25,216.21,12.74664248]
[1731783808756,160.9,216.27,216.21,12.74664248]
[1731783808959,4.6232,216.3,216.25,12.74664248]
[1731783809151,4.6232,216.3,216.26,12.74664248]
[1731783809468,165.5232,216.3,216.26,12.74664248]
[1731783809864,160.9,216.33,216.28,12.74664248]
[1731783810056,4.6228,216.32,216.28,12.74664248]
[1731783810557,4.6228,216.32,216.29,12.74664248]
[1731783810769,160.9,216.34,216.3,12.74664248]
[1731783810954,165.5225,216.34,216.3,12.74664248]
[1731783813657,165.5225,216.34,216.29,12.74664248]
[1731783814063,165.5225,216.34,216.21,16.1876]
[1731783814367,165.5225,216.34,216.28,12.74664248]
[1731783814562,28.398584,216.37,216.28,12.74664248]
[1731783814962,28.398584,216.37,216.29,12.74664248]
[1731783815456,28.398584,216.37,216.23,4.6246]
[1731783815660,23.776884,216.35,216.28,12.74664248]
[1731783815865,160.9,216.34,216.28,12.74664248]
[1731783816056,23.776884,216.33,216.29,12.74664248]
[1731783816467,160.9,216.34,216.31,12.74664248]
[1731783816753,4.1981,216.42,216.33,12.74664248]
[1731783816754,165.5215,216.38,216.33,12.74664248]
[1731783817059,165.5215,216.38,216.34,12.74664248]
[1731783817250,165.5215,216.38,216.33,12.74664248]
[1731783818450,23.776884,216.37,216.33,12.74664248]
[1731783819270,28.398684,216.37,216.32,12.74664248]
[1731783822874,28.398684,216.37,216.29,4.6232]
[1731783823083,28.398684,216.37,216.31,12.74664248]
[1731783827082,27.898684,216.37,216.28,6.4302]
[1731783828987,160.9,216.36,216.28,6.4302]
[1731783829168,23.776884,216.35,216.24,12.74664248]
[1731783829496,23.776884,216.35,216.27,12.74664248]
[1731783829683,23.776884,216.35,216.28,12.74664248]
[1731783829869,23.776884,216.35,216.27,12.74664248]
[1731783830068,23.776884,216.35,216.22,22.6913]
[1731783830069,23.776884,216.35,216.26,12.74664248]
[1731783830676,23.776884,216.33,216.26,12.74664248]
[1731783831585,4.6227,216.32,216.26,12.74664248]
[1731783831791,23.776884,216.31,216.23,12.74664248]
[1731783832284,23.776884,216.31,216.22,6.5045]
[1731783832494,23.776884,216.31,216.23,12.74664248]
[1731783833669,23.776884,216.29,216.26,12.74664248]
[1731783833874,28.399784,216.32,216.27,12.74664248]
[1731783834273,28.399784,216.32,216.26,12.74664248]
[1731783834474,28.399784,216.32,216.22,11.1293]
[1731783834693,28.399784,216.32,216.26,12.74664248]
[1731783836874,160.9,216.31,216.18,4.6256]
[1731783837074,160.9,216.3,216.2,12.74664248]
[1731783837277,23.776884,216.29,216.2,12.74664248]
[1731783839389,23.776884,216.27,216.2,12.74664248]
[1731783840386,4.624,216.26,216.2,12.74664248]
[1731783840692,4.624,216.26,216.22,12.74664248]
[1731783841376,160.9,216.33,216.25,12.74664248]
[1731783841584,15.8104,216.34,216.25,12.74664248]
[1731783841793,15.8104,216.34,216.27,12.74664248]
[1731783842207,15.8104,216.34,216.26,12.74664248]
[1731783842670,15.8104,216.34,216.18,16.1901]
[1731783842671,4.6227,216.32,216.21,11.5624]
[1731783842995,4.6227,216.32,216.21,12.74664248]
[1731783843291,23.776884,216.31,216.23,12.74664248]
[1731783843793,23.776884,216.31,216.21,12.74664248]
[1731783844096,23.776884,216.29,216.16,6.5045]
[1731783844279,23.776884,216.27,216.16,6.5045]
[1731783844790,23.776884,216.27,216.12,11.5675]
[1731783844791,23.776884,216.23,216.02,38.0362]
[1731783844970,23.776884,216.21,216.09,12.74664248]
[1731783845174,23.776884,216.19,216.09,12.74664248]
[1731783845405,184.676884,216.19,216.09,12.74664248]
[1731783845687,23.776884,216.17,216.09,12.74664248]
[1731783845890,23.776884,216.17,216.11,12.74664248]
[1731783846093,23.776884,216.17,216.13,12.74664248]
[1731783846687,28.402984,216.17,216.13,12.74664248]
[1731783847806,160.9,216.18,216.13,12.74664248]
[1731783848303,160.9,216.18,216.15,12.74664248]
[1731783848613,4.6256,216.19,216.15,12.74664248]
[1731783848906,4.6247,216.23,216.17,12.74664248]
[1731783849096,4.6238,216.27,216.22,12.74664248]
[1731783849299,30.0,216.23,216.22,12.74664248]
[1731783849488,30.0,216.23,216.2,12.74664248]
[1731783849689,30.0,216.23,216.18,12.74664248]
[1731783850088,4.6238,216.27,216.18,12.74664248]
[1731783850310,4.6238,216.27,216.21,12.74664248]
[1731783851410,4.6225,216.33,216.26,12.74664248]
[1731783851614,160.9,216.32,216.26,12.74664248]
[1731783851802,160.9,216.32,216.24,12.74664248]
[1731783852490,4.6229,216.31,216.22,19.16344248]
[1731783854097,4.6234,216.29,216.22,19.16344248]
[1731783856307,23.776884,216.28,216.22,19.16344248]
[1731783856508,23.776884,216.28,216.22,6.4168]
[1731783858214,23.776884,216.26,216.22,6.4168]
[1731783859410,4.6242,216.25,216.22,6.4168]
[1731783859915,23.776884,216.24,216.19,12.74664248]
[1731783860123,23.776884,216.24,216.17,12.74664248]
[1731783861227,4.6247,216.23,216.17,12.74664248]
[1731783861517,4.6247,216.23,216.19,12.74664248]
[1731783861920,4.6247,216.23,216.16,11.5655]
[1731783862218,4.6247,216.23,216.17,12.74664248]
[1731783862400,4.6247,216.23,216.18,12.74664248]
[1731783864321,23.776884,216.22,216.16,12.74664248]
[1731783864701,23.776884,216.22,216.15,12.74664248]
[1731783865041,184.676884,216.22,216.14,12.74664248]
[1731783865420,4.6251,216.21,216.14,12.74664248]
[1731783866123,23.776884,216.2,216.14,12.74664248]
[1731783866503,4.6255,216.19,216.14,12.74664248]
[1731783866702,23.776884,216.18,216.13,12.74664248]
[1731783867735,28.402184,216.2,216.13,12.74664248]
[1731783871326,28.402184,216.2,216.12,6.1786]
[1731783871327,28.402184,216.2,216.16,12.74664248]
[1731783871623,28.402184,216.2,216.17,12.74664248]
[1731783873113,23.776884,216.2,216.17,12.74664248]
[1731783873319,160.9,216.23,216.17,12.74664248]
[1731783873320,4.625,216.22,216.17,12.74664248]
[1731783874431,23.776884,216.21,216.16,12.74664248]
[1731783874931,23.776884,216.21,216.17,12.74664248]
[1731783875431,4.6251,216.21,216.17,12.74664248]
[1731783879026,28.402284,216.2,216.17,12.74664248]
[1731783880728,23.776884,216.2,216.17,12.74664248]
[1731783880928,23.776884,216.21,216.18,8.13063978]
[1731783881322,23.776884,216.21,216.16,8.13063978]
[1731783882425,28.401584,216.23,216.16,8.13063978]
[1731783883626,28.401584,216.23,216.15,8.13063978]
[1731783885518,28.401584,216.23,216.16,8.13063978]
[1731783887332,189.301584,216.23,216.16,8.13063978]
[1731783891730,28.401584,216.23,216.16,8.13063978]
[1731783896646,28.401584,216.23,216.18,8.13063978]
[1731783896852,4.6242,216.26,216.2,8.13063978]
[1731783897150,4.6242,216.26,216.22,8.13063978]
[1731783898242,28.400684,216.27,216.22,8.13063978]
[1731783901346,4.6235,216.29,216.26,8.13063978]
[1731783901550,4.6235,216.29,216.22,11.0621]
[1731783901751,4.6235,216.29,216.25,8.13063978]
[1731783902432,28.400584,216.28,216.25,8.13063978]
[1731783903550,28.400584,216.28,216.22,11.0621]
[1731783903744,28.400584,216.28,216.25,8.13063978]
[1731783904432,23.776884,216.29,216.27,8.13063978]
[1731783905062,23.776884,216.29,216.26,8.13063978]
[1731783909058,23.776884,216.29,216.27,8.13063978]
[1731783910856,15.8532,216.35,216.27,8.13063978]
[1731783910857,23.776884,216.3,216.27,8.13063978]
[1731783912853,23.776884,216.31,216.27,8.13063978]
[1731783914668,160.9,216.36,216.3,8.13063978]
[1731783914845,4.6221,216.36,216.31,8.13063978]
[1731783915961,4.6212,216.4,216.35,8.13063978]
[1731783916367,4.6212,216.4,216.32,6.4373]
[1731783916562,4.6212,216.4,216.33,8.13063978]
[1731783917556,23.776884,216.39,216.33,8.13063978]
[1731783917957,23.776884,216.41,216.32,6.4373]
[1731783918157,28.397684,216.41,216.34,8.13063978]
[1731783919855,28.397684,216.41,216.36,8.13063978]
[1731783920771,7.23094528,216.44,216.34,4.6222]
[1731783920772,4.6202,216.44,216.38,8.13063978]
[1731783920956,23.776884,216.43,216.38,8.13063978]
[1731783921155,4.6206,216.42,216.37,8.13063978]
[1731783921551,23.776884,216.41,216.37,8.13063978]
[1731783921748,23.776884,216.41,216.38,8.13063978]
[1731783921971,23.776884,216.41,216.37,8.13063978]
[1731783922475,23.776884,216.43,216.4,8.13063978]
[1731783922771,4.6199,216.46,216.41,8.13063978]
[1731783922963,4.6199,216.46,216.42,8.13063978]
[1731783923555,4.6195,216.48,216.44,8.13063978]
[1731783923865,4.619,216.5,216.45,8.13063978]
[1731783924471,4.619,216.5,216.47,8.13063978]
[1731783924677,4.6186,216.52,216.47,8.13063978]
[1731783924958,4.6182,216.54,216.49,8.13063978]
[1731783925270,0.5395949,216.57,216.51,8.13063978]
[1731783925576,0.5395949,216.57,216.52,8.13063978]
[1731783925760,5.1570949,216.57,216.52,8.13063978]
[1731783927673,5.1570949,216.57,216.51,8.13063978]
[1731783928064,23.776884,216.56,216.51,8.13063978]
[1731783928264,23.776884,216.56,216.5,8.13063978]
[1731783928452,28.394684,216.56,216.47,18.069]
[1731783928653,28.394684,216.56,216.47,26.19963978]
[1731783928853,28.394684,216.56,216.49,8.13063978]
[1731783929874,28.394684,216.56,216.47,22.6885]
[1731783930075,28.394684,216.56,216.48,12.74993978]
[1731783930452,28.394684,216.56,216.49,8.13063978]
[1731783930865,23.776884,216.56,216.51,8.13063978]
[1731783931170,24.3164789,216.57,216.51,8.13063978]
[1731783931667,23.776884,216.56,216.51,8.13063978]
[1731783933059,23.776884,216.56,216.51,8.10530551]
[1731783936058,23.776884,216.56,216.48,16.1677]
[1731783936255,23.776884,216.56,216.51,8.10530551]
[1731783937552,23.776884,216.56,216.48,11.5484]
[1731783937752,23.776884,216.56,216.5,8.10530551]
[1731783938581,23.776884,216.55,216.49,8.10530551]
[1731783938887,23.776884,216.55,216.5,8.10530551]
[1731783939180,23.776884,216.56,216.5,8.10530551]
[1731783940167,23.776884,216.56,216.49,8.10530551]
[1731783940365,23.776884,216.56,216.5,8.10530551]
[1731783940780,0.5395949,216.57,216.53,8.10530551]
[1731783945286,0.5395949,216.57,216.51,8.10530551]
[1731783945473,0.5395949,216.57,216.52,8.10530551]
[1731783946289,0.5395949,216.57,216.54,8.10530551]
[1731783946663,0.5395949,216.57,216.55,8.10530551]
[1731783946868,0.5395949,216.57,216.54,8.10530551]
[1731783948788,0.5395949,216.57,216.53,8.10530551]
[1731783950069,0.5395949,216.57,216.54,8.10530551]
[1731783950270,0.5395949,216.57,216.54,12.72330551]
[1731783952390,0.5395949,216.57,216.52,8.10530551]
[1731783952773,0.5395949,216.57,216.53,8.10530551]
[1731783954174,0.5395949,216.57,216.51,16.1655]
[1731783954371,28.9338789,216.57,216.51,24.27080551]
[1731783955192,24.3164789,216.57,216.51,24.27080551]
[1731783955396,24.3164789,216.57,216.52,8.10530551]
[1731783957179,24.3164789,216.57,216.51,16.1655]
[1731783957180,24.3164789,216.57,216.51,19.65210551]
[1731783957591,8.10530551,216.56,216.51,11.5468]
[1731783957895,23.776884,216.55,216.51,11.5468]
[1731783958094,32.42178441,216.57,216.51,11.5468]
[1731783958796,24.3164789,216.57,216.51,24.27080551]
[1731783960498,24.3164789,216.57,216.52,8.10530551]
[1731783960701,24.3164789,216.57,216.51,19.65210551]
[1731783961780,24.3164789,216.57,216.53,8.10530551]
[1731783961981,24.3164789,216.57,216.52,8.10530551]
[1731783963105,24.3164789,216.57,216.52,12.72370551]
[1731783963905,39.6885789,216.57,216.52,4.6184]
[1731783964078,39.6885789,216.57,216.51,8.10530551]
[1731783964497,39.6885789,216.57,216.52,8.10530551]
[1731783964694,0.5395949,216.57,216.53,8.10530551]
[1731783965013,0.5395949,216.57,216.54,8.10530551]
[1731783966300,0.5395949,216.57,216.54,4.618]
[1731783966510,24.3164789,216.57,216.52,16.1642]
[1731783966701,32.42178441,216.57,216.52,11.5459]
[1731783967300,0.5395949,216.57,216.52,16.1644]
[1731783967611,24.3164789,216.57,216.52,16.1644]
[1731783968201,31.88218951,216.55,216.47,23.0978]
[1731783968381,23.776884,216.54,216.48,4.6191]
[1731783968683,23.776884,216.56,216.51,8.10530551]
[1731783969002,0.5395949,216.57,216.54,8.10530551]
[1731783969803,0.5395949,216.57,216.52,8.10530551]
[1731783970699,24.3164789,216.57,216.51,8.10530551]
[1731783970901,0.5395949,216.57,216.51,8.10530551]
[1731783971478,0.5395949,216.57,216.52,4.6185]
[1731783972101,24.3164789,216.57,216.52,4.6185]
[1731783972483,24.3164789,216.57,216.52,8.10530551]
[1731783972685,0.5395949,216.57,216.52,8.10530551]
[1731783973705,0.5395949,216.57,216.52,12.72360551]
[1731783974702,0.5395949,216.57,216.53,8.10530551]
[1731783975108,0.5395949,216.57,216.55,8.10530551]
[1731783976006,0.5395949,216.57,216.56,8.10530551]
[1731783976909,0.5395949,216.57,216.56,12.72290551]
[1731783978100,0.5395949,216.57,216.56,4.6176]
[1731783978311,0.5395949,216.57,216.56,12.72290551]
[1731783984622,0.5395949,216.57,216.56,22.72290551]
[1731783987212,0.5395949,216.57,216.56,14.6176]
[1731783987422,0.5395949,216.57,216.56,22.72290551]
[1731783990919,0.5395949,216.57,216.56,14.6176]
[1731783991095,0.5395949,216.57,216.56,22.72290551]
[1731783996501,0.5395949,216.57,216.56,14.6176]
[1731783997014,0.5395949,216.57,216.56,22.72290551]
[1731783997414,0.5395949,216.57,216.56,14.6176]
[1731783997719,0.5395949,216.57,216.56,22.72290551]
[1731783997921,0.5395949,216.57,216.56,14.6176]
[1731783998107,0.5395949,216.57,216.56,22.72290551]
[1731783999311,164.16100041,216.66,216.56,12.72290551]
[1731783999515,23.776884,216.62,216.58,8.10530551]
[1731784000620,23.776884,216.63,216.58,8.10530551]
[1731784001724,28.392584,216.65,216.58,8.10530551]
[1731784006131,8.10530551,216.64,216.55,11.5445]
[1731784006426,23.776884,216.61,216.55,11.5445]
[1731784007019,23.776884,216.61,216.55,19.64980551]
[1731784008017,23.776884,216.61,216.55,24.26760551]
[1731784008623,28.393484,216.61,216.55,24.26760551]
[1731784009619,28.393484,216.61,216.55,19.64980551]
[1731784010833,23.776884,216.58,216.52,8.10530551]
[1731784011036,23.776884,216.58,216.53,8.10530551]
[1731784011331,23.776884,216.6,216.55,8.10530551]
[1731784011534,23.776884,216.6,216.58,8.10530551]
[1731784011833,28.393284,216.62,216.58,8.10530551]
[1731784014725,7.24825165,216.67,216.61,8.10530551]
[1731784014921,185.0487015,216.69,216.64,8.10530551]
[1731784014922,177.2700949,216.68,216.64,8.10530551]
[1731784015115,160.6708949,216.68,216.65,8.10530551]
[1731784015720,4.6152,216.68,216.64,8.10530551]
[1731784015930,4.6152,216.68,216.65,8.10530551]
[1731784016644,160.6704949,216.7,216.57,16.261]
[1731784016839,160.6704949,216.7,216.67,8.10530551]
[1731784017019,4.6148,216.7,216.67,8.10530551]
[1731784017440,156.0556949,216.72,216.67,8.10530551]
[1731784017743,160.6700949,216.72,216.67,8.10530551]
[1731784017924,23.776884,216.71,216.67,8.10530551]
[1731784018924,28.391384,216.71,216.67,8.10530551]
[1731784020333,23.776884,216.72,216.67,8.10530551]
[1731784020552,160.6693949,216.75,216.65,16.155]
[1731784020724,160.6693949,216.75,216.71,8.10530551]
[1731784020725,4.6137,216.75,216.71,8.10530551]
[1731784020925,4.6133,216.77,216.72,8.10530551]
[1731784021321,161.2082898,216.78,216.65,16.155]
[1731784021650,161.2082898,216.78,216.73,8.10530551]
[1731784021651,5.1525949,216.78,216.73,8.10530551]
[1731784021943,161.2082898,216.78,216.73,8.10530551]
[1731784022143,23.776884,216.77,216.73,8.10530551]
[1731784022534,5.1525949,216.78,216.74,8.10530551]
[1731784022740,0.5395949,216.78,216.74,8.10530551]
[1731784023546,0.5395949,216.78,216.72,6.0709]
[1731784023743,0.5395949,216.78,216.75,8.10530551]
[1731784023949,0.5395949,216.78,216.76,8.10530551]
[1731784024542,0.5395949,216.78,216.75,8.10530551]
[1731784024846,0.5395949,216.78,216.74,8.10530551]
[1731784026056,0.5395949,216.78,216.76,8.10530551]
[1731784026223,0.5395949,216.78,216.73,16.1489]
[1731784026426,0.5395949,216.78,216.77,8.10530551]
[1731784027231,0.5395949,216.78,216.74,20.1]
[1731784027421,0.5395949,216.78,216.77,8.10530551]
[1731784027625,0.5395949,216.78,216.77,12.71840551]
[1731784029438,0.5395949,216.78,216.77,26.7165]
[1731784029644,0.5395949,216.78,216.77,54.82180551]
[1731784030038,4.6105,216.9,216.78,20.2]
[1731784030341,160.6657949,216.92,216.86,8.10530551]
[1731784031054,23.776884,216.91,216.86,8.10530551]
[1731784031560,28.387284,216.91,216.86,8.10530551]
[1731784032258,28.387284,216.91,216.87,8.10530551]
[1731784032437,156.0556949,216.96,216.88,8.10530551]
[1731784032750,4.6095,216.95,216.88,8.10530551]
[1731784034450,4.6095,216.95,216.87,4.611]
[1731784034451,23.776884,216.94,216.9,8.10530551]
[1731784034655,28.386484,216.94,216.9,8.10530551]
[1731784034855,28.386084,216.96,216.9,8.10530551]
[1731784035455,4.6092,216.96,216.9,8.10530551]
[1731784037158,23.776884,216.95,216.9,8.10530551]
[1731784037461,23.776884,216.95,216.85,22.1034]
[1731784037462,23.776884,216.94,216.85,26.7147]
[1731784037637,23.776884,216.94,216.87,8.10530551]
[1731784038157,23.776884,216.94,216.88,8.10530551]
[1731784038543,28.386484,216.94,216.89,8.10530551]
[1731784039249,23.776884,216.93,216.85,33.6321]
[1731784039459,4.6096,216.94,216.89,8.10530551]
[1731784040050,4.6096,216.94,216.88,8.10530551]
[1731784040452,4.6096,216.94,216.89,8.10530551]
[1731784040643,23.776884,216.93,216.89,8.10530551]
[1731784041355,23.776884,216.95,216.91,8.10530551]
[1731784042463,4.6092,216.96,216.91,8.10530551]
[1731784042644,164.16100041,216.99,216.91,8.10530551]
[1731784042842,4.6088,216.98,216.93,8.10530551]
[1731784043049,4.6088,216.98,216.91,8.10530551]
[1731784043956,28.385384,216.99,216.91,8.10530551]
[1731784044161,36.49068951,216.99,216.91,8.10530551]
[1731784044552,28.385384,216.99,216.93,8.10530551]
[1731784044748,28.385384,216.99,216.93,14.23150551]
[1731784045760,0.5395949,217.0,216.94,15.0742]
[1731784045969,5.1478949,217.0,216.95,8.10530551]
[1731784046263,0.5395949,217.0,216.95,8.10530551]
[1731784046462,0.5395949,217.0,216.94,19.6836]
[1731784046965,5.1478949,217.0,216.94,15.0742]
[1731784048064,28.385384,216.99,216.94,15.0742]
[1731784050982,23.776884,216.99,216.94,15.0742]
[1731784051154,24.3164789,217.0,216.94,19.6837]
[1731784053251,0.5395949,217.0,216.95,8.10530551]
[1731784053456,0.5395949,217.0,216.96,4.6091]
[1731784053656,0.5395949,217.0,216.97,8.10530551]
[1731784053973,0.5395949,217.0,216.96,16.1319]
[1731784054271,0.5395949,217.0,216.97,8.10530551]
[1731784055367,0.5395949,217.0,216.97,24.23640551]
[1731784055952,0.5395949,217.0,216.97,16.1311]
[1731784056457,0.5395949,217.0,216.95,4.6091]
[1731784057051,0.5395949,217.0,216.95,8.10530551]
[1731784057252,0.5395949,217.0,216.94,19.6836]
[1731784057459,23.776884,216.99,216.94,15.0742]
[1731784058273,23.776884,216.99,216.93,10.7359]
[1731784058977,23.776884,216.97,216.93,6.1262]
[1731784059959,23.776884,216.99,216.93,10.7359]
[1731784060159,23.776884,216.99,216.94,8.10530551]
[1731784060372,0.5395949,217.0,216.94,8.10530551]
[1731784060575,0.5395949,217.0,216.96,8.10530551]
[1731784061358,24.3164789,217.0,216.94,12.71470551]
[1731784064761,24.3164789,217.0,216.96,8.10530551]
[1731784065586,24.3164789,217.0,216.94,4.6094]
[1731784065763,24.3164789,217.0,216.95,8.10530551]
[1731784065964,24.3164789,217.0,216.97,8.10530551]
[1731784066266,0.5395949,217.0,216.97,8.10530551]
[1731784066457,0.5395949,217.0,216.99,8.10530551]
[1731784066660,0.5395949,217.0,216.95,16.1326]
[1731784066863,0.5395949,217.0,216.99,8.10530551]
[1731784067191,0.5395949,217.0,216.95,16.1326]
[1731784067484,0.5395949,217.0,216.98,8.10530551]
[1731784069073,0.5395949,217.0,216.96,8.10530551]
[1731784069260,24.3164789,217.0,216.95,11.5233]
[1731784069466,24.3164789,217.0,216.96,8.10530551]
[1731784071061,24.3164789,217.0,216.96,4.6091]
[1731784071268,0.5395949,217.0,216.98,8.10530551]
[1731784073887,0.5395949,217.0,216.98,7.60530551]
[1731784074878,0.5395949,217.0,216.95,16.1326]
[1731784074879,24.3164789,217.0,216.95,16.1326]
[1731784075177,24.3164789,217.0,216.98,8.10530551]
[1731784075585,0.5395949,217.0,216.98,8.10530551]
[1731784077884,0.5395949,217.0,216.97,8.10530551]
[1731784081896,0.5395949,217.0,216.96,4.609]
[1731784081897,0.5395949,217.0,216.95,19.62860551]
[1731784082722,0.5395949,217.0,216.95,11.5233]
[1731784082723,5.1478949,217.0,216.95,11.5233]
[1731784082892,23.776884,216.99,216.93,6.1262]
[1731784083899,23.776884,216.99,216.94,8.10530551]
[1731784084078,24.3164789,217.0,216.94,8.10530551]
[1731784084274,23.776884,216.98,216.93,10.7358]
[1731784084474,23.776884,216.98,216.92,8.10530551]
[1731784084679,23.776884,216.98,216.92,12.71520551]
[1731784085793,4.6088,216.98,216.9,16.1357]
[1731784086103,23.776884,216.97,216.91,8.10530551]
[1731784086774,23.776884,216.97,216.9,11.5255]
[1731784086775,31.88218951,216.97,216.9,11.5255]
[1731784087097,31.88218951,216.97,216.88,4.6106]
[1731784087098,23.776884,216.95,216.88,4.6106]
[1731784087299,23.776884,216.95,216.9,8.10530551]
[1731784087501,23.776884,216.95,216.88,4.6106]
[1731784087686,23.776884,216.95,216.9,8.10530551]
[1731784087887,28.386284,216.95,216.9,8.10530551]
[1731784089478,23.776884,216.95,216.89,11.5261]
[1731784089696,23.776884,216.95,216.92,8.10530551]
[1731784090391,23.776884,216.96,216.92,8.10530551]
[1731784090705,23.776884,216.96,216.91,8.10530551]
[1731784092103,28.386084,216.96,216.9,4.6103]
[1731784092402,28.386084,216.96,216.89,19.63140551]
[1731784092777,36.49138951,216.96,216.89,19.63140551]
[1731784094697,28.386084,216.96,216.89,24.24200551]
[1731784095003,28.386084,216.96,216.89,16.1367]
[1731784095205,28.386084,216.96,216.91,8.10530551]
[1731784095605,156.0556949,216.99,216.93,8.10530551]
[1731784095786,4.6085,216.99,216.93,8.10530551]
[1731784097087,23.776884,216.98,216.93,8.10530551]
[1731784097682,0.5395949,217.0,216.95,8.10530551]
[1731784098583,5.1478949,217.0,216.95,8.10530551]
[1731784099088,23.776884,216.99,216.95,8.10530551]
[1731784099394,23.776884,216.99,216.93,19.62970551]
[1731784100107,23.776884,216.99,216.93,24.23940551]
[1731784100806,23.776884,216.98,216.93,24.23940551]
[1731784101314,23.776884,216.98,216.94,8.10530551]
[1731784101489,0.5395949,217.0,216.94,8.10530551]
[1731784101697,23.776884,216.99,216.94,8.10530551]
[1731784103309,23.776884,216.98,216.93,19.62970551]
[1731784103791,23.776884,216.98,216.91,4.61]
[1731784103990,23.776884,216.98,216.91,12.71530551]
[1731784104393,23.776884,216.98,216.92,8.10530551]
[1731784104715,23.776884,216.98,216.91,12.71530551]
[1731784105014,23.776884,216.96,216.91,8.10530551]
[1731784107997,28.386084,216.96,216.9,12.71560551]
[1731784108205,28.386084,216.96,216.91,8.10530551]
[1731784109000,23.776884,216.97,216.91,8.10530551]
[1731784110113,23.776884,216.95,216.9,8.10530551]
[1731784110690,23.776884,216.95,216.89,6.3621]
[1731784110991,23.776884,216.95,216.89,14.46740551]
[1731784111799,179.8325789,216.95,216.9,8.10530551]
[1731784112205,184.4420789,216.95,216.9,8.10530551]
[1731784113015,184.4420789,216.95,216.89,6.3621]
[1731784113191,184.4420789,216.95,216.89,14.46740551]
[1731784114506,184.4420789,216.95,216.89,6.3621]
[1731784114507,192.54738441,216.95,216.89,6.3621]
[1731784116723,184.4420789,216.95,216.87,8.10530551]
[1731784117014,184.4420789,216.95,216.85,4.6114]
[1731784117015,31.88218951,216.93,216.86,8.10530551]
[1731784117716,8.10530551,216.92,216.85,4.6114]
[1731784118011,31.88218951,216.93,216.86,8.10530551]
[1731784118308,23.776884,216.91,216.84,11.5291]
[1731784118513,23.776884,216.91,216.85,8.10530551]
[1731784119012,28.387184,216.91,216.86,8.10530551]
[1731784119612,31.88218951,216.88,216.83,6.1943]
[1731784119809,31.88218951,216.88,216.81,8.10530551]
[1731784120009,31.88218951,216.88,216.8,11.5313]
[1731784120196,23.776884,216.84,216.78,6.0559]
[1731784120394,23.776884,216.82,216.74,16.1476]
[1731784120697,23.776884,216.82,216.73,6.0559]
[1731784120698,8.10530551,216.79,216.73,6.0559]
[1731784120901,28.389784,216.78,216.73,6.0559]
[1731784121508,23.776884,216.79,216.76,8.10530551]
[1731784121700,23.776884,216.8,216.78,8.10530551]
[1731784121902,23.776884,216.82,216.73,22.2048]